bitfinex/quotes_SOLUSD_20241125
["timestamp","ask_amount","ask_price","bid_price","bid_amount"]
[1732549212337,10.0,240.96,240.95,0.4864688]
[1732549212523,10.0,240.96,240.95,20.26953334]
[1732549212731,10.0,240.96,240.95,0.4864688]
[1732549213032,10.0,240.96,240.95,20.26953334]
[1732549213868,10.0,240.98,240.96,4.15]
[1732549214148,10.0,241.08,241.02,20.0]
[1732549214343,10.0,241.06,241.02,19.78306454]
[1732549214645,10.0,241.06,240.98,0.25098]
[1732549214846,10.0,241.08,241.0,0.12549]
[1732549215145,10.0,241.11,241.0,24.027864]
[1732549215449,10.0,241.25,241.05,20.0]
[1732549215450,10.0,241.14,241.05,20.0]
[1732549215643,70.0,241.21,241.13,19.78306454]
[1732549215644,10.0,241.15,241.13,19.78306454]
[1732549215856,30.0,241.14,241.13,19.78306454]
[1732549216223,10.0,241.19,241.16,20.0]
[1732549216423,10.0,241.19,241.18,19.78306454]
[1732549216742,40.0,241.19,241.18,19.78306454]
[1732549216928,40.0,241.19,241.18,23.92926454]
[1732549217124,10.0,241.21,241.18,23.92926454]
[1732549217324,10.0,241.27,241.21,23.776884]
[1732549217629,10.0,241.33,241.26,19.78306454]
[1732549217831,10.0,241.33,241.31,19.78306454]
[1732549218344,10.0,241.35,241.31,19.78306454]
[1732549218547,10.0,241.39,241.34,19.78306454]
[1732549218847,10.0,241.39,241.38,23.92586454]
[1732549219235,12.3904,241.49,241.34,19.78306454]
[1732549219236,10.0,241.37,241.34,19.78306454]
[1732549219435,10.0,241.37,241.36,19.78306454]
[1732549219621,10.0,241.4,241.36,19.78306454]
[1732549219824,10.0,241.46,241.39,19.78306454]
[1732549220048,10.0,241.46,241.41,19.78306454]
[1732549220245,10.0,241.46,241.44,19.78306454]
[1732549220638,80.0,241.48,241.44,19.78306454]
[1732549220948,13.0555,241.57,241.35,20.0]
[1732549220949,10.0,241.39,241.35,20.0]
[1732549221254,10.0,241.37,241.35,43.92626454]
[1732549221456,10.0,241.36,241.33,23.92666454]
[1732549221922,10.0,241.36,241.35,19.78306454]
[1732549222125,10.0,241.34,241.33,23.92666454]
[1732549222347,10.0,241.34,241.33,4.1436]
[1732549222543,10.0,241.34,241.31,19.78306454]
[1732549222544,10.0,241.32,241.31,19.78306454]
[1732549222850,10.0,241.32,241.31,23.92696454]
[1732549223032,10.0,241.35,241.31,34.28706454]
[1732549223343,10.0,241.38,241.34,19.78306454]
[1732549223547,10.0,241.38,241.37,19.78306454]
[1732549223926,10.0,241.35,241.33,19.78306454]
[1732549224357,10.0,241.28,241.27,19.78306454]
[1732549224648,10.0,241.37,241.27,19.78306454]
[1732549224851,10.0,241.37,241.21,37.36493457]
[1732549224852,10.0,241.35,241.34,19.78306454]
[1732549225043,10.0,241.35,241.34,23.92656454]
[1732549226343,80.0,241.38,241.32,19.78306454]
[1732549226546,10.0,241.35,241.34,19.78306454]
[1732549226932,10.0,241.35,240.71,185.11456093]
[1732549226933,10.0,241.29,241.28,4.1445]
[1732549227237,10.0,241.3,241.28,23.92756454]
[1732549227443,10.0,241.3,241.29,19.78306454]
[1732549227855,10.0,241.34,241.29,19.78306454]
[1732549228067,10.0,241.34,241.33,19.78306454]
[1732549228354,10.0,241.36,241.33,19.78306454]
[1732549228552,10.0,241.34,241.33,19.78306454]
[1732549228761,10.0,241.34,241.28,14.5059]
[1732549228762,10.0,241.34,241.31,19.78306454]
[1732549228947,10.0,241.34,241.33,23.92676454]
[1732549229152,10.0,241.34,241.33,19.78306454]
[1732549229661,70.0,241.37,241.2,31.8952389]
[1732549229662,10.0,241.32,241.31,19.78306454]
[1732549230034,10.0,241.35,241.31,19.78306454]
[1732549230253,10.0,241.35,241.34,19.78306454]
[1732549230448,10.0,241.37,241.32,19.78306454]
[1732549230650,10.0,241.33,241.32,19.78306454]
[1732549231053,10.0,241.33,241.32,23.92686454]
[1732549231539,10.0,241.38,241.32,23.92686454]
[1732549231857,10.0,241.38,241.37,19.78306454]
[1732549232160,10.0,241.4,241.37,19.78306454]
[1732549232338,10.0,241.41,241.39,19.78306454]
[1732549233236,10.0,241.41,241.4,4.1425]
[1732549233639,10.0,241.41,241.39,19.78306454]
[1732549233863,10.0,241.44,241.39,19.78306454]
[1732549234080,10.0,241.44,241.42,19.78306454]
[1732549234369,10.0,241.4,241.39,20.0]
[1732549234536,10.0,241.42,241.39,20.0]
[1732549234735,10.0,241.4,241.39,20.0]
[1732549234935,10.0,241.41,241.39,20.0]
[1732549235148,17.7313119,241.45,241.4,4.1425]
[1732549235363,17.7313119,241.45,241.4,14.4987]
[1732549235564,17.7313119,241.45,241.43,20.0]
[1732549235565,10.0,241.45,241.43,20.0]
[1732549235868,10.0,241.51,241.47,20.0]
[1732549236039,10.0,241.54,241.47,20.0]
[1732549236245,10.0,241.54,241.53,19.78306454]
[1732549236553,10.0,241.56,241.53,19.78306454]
[1732549236751,10.0,241.56,241.55,19.78306454]
[1732549237448,10.0,241.56,241.55,23.92296454]
[1732549237851,10.0,241.62,241.55,54.05582908]
[1732549238048,10.0,241.62,241.61,19.78306454]
[1732549238253,29.9598,241.72,241.61,19.78306454]
[1732549238254,10.0,241.64,241.61,19.78306454]
[1732549238446,10.0,241.64,241.63,19.78306454]
[1732549238866,10.0,241.64,241.55,34.27276454]
[1732549238867,10.0,241.62,241.61,19.78306454]
[1732549239167,19.78306454,241.69,241.57,19.78306454]
[1732549239168,10.0,241.6,241.57,19.78306454]
[1732549239341,10.0,241.58,241.55,23.92296454]
[1732549239542,10.0,241.54,241.48,19.78306454]
[1732549239742,70.0,241.58,241.45,19.78306454]
[1732549239743,10.0,241.47,241.45,19.78306454]
[1732549239942,10.0,241.47,241.46,19.78306454]
[1732549241362,10.0,241.47,241.46,23.92446454]
[1732549241761,10.0,241.47,241.46,19.78306454]
[1732549241967,10.0,241.47,241.45,23.92456454]
[1732549242752,10.0,241.47,241.46,19.78306454]
[1732549243848,80.0,241.47,241.42,19.78306454]
[1732549244061,10.0,241.43,241.36,20.0]
[1732549244261,10.0,241.55,241.36,20.0]
[1732549244262,10.0,241.41,241.36,20.0]
[1732549245177,10.0,241.41,241.4,19.78306454]
[1732549245476,10.0,241.43,241.41,14.4981]
[1732549245667,10.0,241.43,241.42,19.78306454]
[1732549245853,10.0,241.48,241.42,39.56612908]
[1732549246057,10.0,241.48,241.47,19.78306454]
[1732549247563,10.0,241.48,241.47,23.92436454]
[1732549247864,10.0,241.51,241.47,23.92436454]
[1732549248065,10.0,241.57,241.5,39.78306454]
[1732549248271,10.0,241.55,241.5,20.0]
[1732549248483,10.0,241.59,241.5,20.0]
[1732549248785,10.0,241.59,241.51,20.0]
[1732549248983,10.0,241.61,241.51,20.0]
[1732549249287,10.0,241.54,241.51,20.0]
[1732549249475,10.0,241.54,241.52,4.1404]
[1732549249785,10.0,241.54,241.53,19.78306454]
[1732549250077,10.0,241.56,241.55,20.0]
[1732549250279,10.0,241.62,241.55,39.78306454]
[1732549250471,10.0,241.62,241.61,19.78306454]
[1732549250668,10.0,241.67,241.61,19.78306454]
[1732549250981,10.0,241.67,241.63,19.78306454]
[1732549251182,10.0,241.67,241.65,19.78306454]
[1732549251780,10.0,241.67,241.66,4.138]
[1732549252284,10.0,241.67,241.55,20.0]
[1732549252586,10.0,241.62,241.61,19.78306454]
[1732549253479,70.0,241.71,241.61,19.78306454]
[1732549253480,10.0,241.66,241.61,19.78306454]
[1732549253790,10.0,241.66,241.65,23.92126454]
[1732549254163,19.78306454,241.77,241.65,34.26676454]
[1732549254164,10.0,241.7,241.65,34.26676454]
[1732549254379,10.0,241.7,241.69,19.78306454]
[1732549255776,10.0,241.7,241.69,23.92056454]
[1732549257072,70.0,241.73,241.69,23.92056454]
[1732549257386,10.0,241.72,241.71,19.78306454]
[1732549257679,10.12549,241.7,241.68,4.1376]
[1732549258286,10.12549,241.7,241.69,19.78306454]
[1732549258902,10.0,241.7,241.69,19.78306454]
[1732549259087,10.0,241.74,241.69,19.78306454]
[1732549259292,10.0,241.7,241.68,4.1376]
[1732549259586,10.0,241.7,241.69,19.78306454]
[1732549259887,70.0,241.72,241.66,20.0]
[1732549259888,10.0,241.68,241.67,19.78306454]
[1732549260063,10.0,241.68,241.66,4.1379]
[1732549260967,10.0,241.71,241.67,39.56612908]
[1732549261172,10.0,241.74,241.7,19.78306454]
[1732549261364,10.0,241.74,241.73,19.78306454]
[1732549261588,40.0,241.74,241.73,19.78306454]
[1732549261966,30.0,241.74,241.73,23.91986454]
[1732549262167,0.4864688,241.81,241.73,23.91986454]
[1732549262168,0.4864688,241.81,241.73,58.03884854]
[1732549262371,0.4864688,241.81,241.8,19.78306454]
[1732549262568,0.4864688,241.81,241.8,39.56612908]
[1732549262791,81.13831342,241.92,241.8,39.56612908]
[1732549262792,10.0,241.89,241.8,39.56612908]
[1732549262963,21.13831342,241.92,241.88,19.78306454]
[1732549263168,10.0,241.92,241.91,19.78306454]
[1732549263672,10.0,241.94,241.91,19.78306454]
[1732549263871,10.0,241.94,241.93,19.78306454]
[1732549264474,10.0,241.94,241.92,19.78306454]
[1732549264680,10.0,241.93,241.92,19.78306454]
[1732549264974,10.0,241.89,241.88,19.78306454]
[1732549265382,10.0,241.89,241.85,4.1347]
[1732549265383,10.0,241.87,241.86,19.78306454]
[1732549265791,10.0,241.99,241.86,19.78306454]
[1732549265792,10.0,241.89,241.86,19.78306454]
[1732549265973,10.0,241.89,241.88,19.78306454]
[1732549266373,10.0,241.95,241.88,19.78306454]
[1732549266699,10.0,241.94,241.93,19.78306454]
[1732549267898,70.0,242.03,241.93,23.91646454]
[1732549267899,10.0,241.96,241.93,23.91646454]
[1732549268079,10.0,241.94,241.93,24.1334]
[1732549268271,10.0,241.94,241.84,10.0]
[1732549268472,10.0,241.92,241.83,10.0]
[1732549268677,10.0,241.92,241.82,0.12549]
[1732549268878,10.0,241.87,241.81,14.474]
[1732549269105,10.0,241.86,241.81,14.474]
[1732549269290,70.0,241.93,241.81,14.474]
[1732549269497,10.0,241.93,241.9,19.78306454]
[1732549269803,70.0,241.96,241.81,14.474]
[1732549269804,10.0,241.87,241.81,14.474]
[1732549270001,10.0,241.87,241.86,19.78306454]
[1732549270686,10.0,241.87,241.84,19.78306454]
[1732549270887,10.0,241.85,241.81,14.474]
[1732549271092,10.0,241.83,241.81,14.474]
[1732549271401,10.0,241.9,241.82,23.902374]
[1732549271602,10.0,241.86,241.82,23.902374]
[1732549271770,10.0,241.86,241.85,20.0]
[1732549271975,10.0,241.96,241.93,20.0]
[1732549272174,10.0,241.96,241.95,19.78306454]
[1732549273003,10.0,242.05,241.98,20.0]
[1732549273194,10.0,242.05,242.04,19.78306454]
[1732549273673,10.0,242.05,242.04,39.56612908]
[1732549273876,10.0,242.05,242.04,23.91456454]
[1732549274095,10.0,242.05,242.04,43.69762908]
[1732549274306,10.0,242.05,242.04,36.07893185]
[1732549274689,10.0,242.08,242.04,68.0263637]
[1732549274904,136.2,242.22,242.04,68.0263637]
[1732549274905,10.0,242.19,242.08,0.25098]
[1732549275197,10.0,242.19,242.18,31.94743185]
[1732549275374,10.0,242.25,242.21,20.0]
[1732549275574,10.0,242.25,242.23,31.94743185]
[1732549275998,10.0,242.27,242.24,4.1281]
[1732549276209,0.4864688,242.3,242.26,51.94743185]
[1732549276371,0.4864688,242.3,242.26,20.0]
[1732549276576,10.0,242.23,242.2,51.94743185]
[1732549276802,10.0,242.23,242.12,10.3252]
[1732549276803,10.0,242.17,242.12,10.3252]
[1732549277004,10.0,242.15,242.14,31.94743185]
[1732549277175,10.0,242.19,242.13,20.0]
[1732549277381,10.0,242.15,242.13,20.0]
[1732549277594,10.0,242.15,242.14,31.94743185]
[1732549277799,10.0,242.19,242.17,20.0]
[1732549277997,31.94743185,242.25,242.14,31.94743185]
[1732549277998,10.0,242.15,242.14,20.0]
[1732549278191,10.0,242.15,242.12,31.94743185]
[1732549278192,10.0,242.13,242.12,31.94743185]
[1732549278499,10.0,242.12,242.08,31.94743185]
[1732549278677,10.0,242.12,242.05,4.1313]
[1732549278678,10.0,242.12,242.11,31.94743185]
[1732549279201,10.0,242.15,242.11,31.94743185]
[1732549279385,10.0,242.23,242.09,0.12549]
[1732549279588,10.0,242.23,242.22,31.94743185]
[1732549280280,31.94743185,242.29,242.2,31.94743185]
[1732549280281,10.0,242.21,242.2,31.94743185]
[1732549280480,10.0,242.23,242.2,31.94743185]
[1732549280682,10.0,242.21,242.2,31.94743185]
[1732549280877,10.0,242.19,242.18,31.94743185]
[1732549281285,10.0,242.17,242.16,31.94743185]
[1732549281797,10.0,242.11,242.1,31.94743185]
[1732549282002,10.0,242.11,242.1,36.07783185]
[1732549282382,10.0,242.18,242.1,36.07783185]
[1732549282607,10.0,242.32,242.1,36.07783185]
[1732549282608,10.0,242.24,242.17,31.94743185]
[1732549282806,10.0,242.22,242.16,31.94743185]
[1732549282978,70.4864688,242.3,242.16,31.94743185]
[1732549282979,10.0,242.24,242.16,31.94743185]
[1732549283179,10.0,242.23,242.16,31.94743185]
[1732549283496,0.4864688,242.3,242.16,31.94743185]
[1732549283497,10.0,242.29,242.17,23.902374]
[1732549283693,10.0,242.21,242.2,20.0]
[1732549284007,10.0,242.23,242.2,36.07623185]
[1732549284180,10.0,242.23,242.18,20.641871]
[1732549284380,70.0,242.24,242.18,4.129]
[1732549284381,10.0,242.19,242.18,4.129]
[1732549284804,10.0,242.19,242.18,36.07643185]
[1732549284980,10.0,242.17,242.16,36.07673185]
[1732549285181,10.0,242.17,242.14,36.07713185]
[1732549285381,10.0,242.15,242.14,31.94743185]
[1732549285598,10.0,242.13,242.1,31.94743185]
[1732549285781,10.0,242.11,242.1,31.94743185]
[1732549285982,10.0,242.09,242.07,4.131]
[1732549286200,10.0,242.1,242.06,31.94743185]
[1732549286502,10.0,242.07,242.06,36.07843185]
[1732549289196,10.0,242.11,242.06,46.40643185]
[1732549289519,10.0,242.11,242.1,31.94743185]
[1732549289706,10.0,242.13,242.1,31.94743185]
[1732549290015,10.0,242.13,242.12,31.94743185]
[1732549291319,10.0,242.13,242.12,36.07753185]
[1732549291610,10.0,242.17,242.12,36.07753185]
[1732549291911,10.0,242.17,242.16,31.94743185]
[1732549292896,10.0,242.17,242.16,36.07693185]
[1732549294502,10.0,242.17,242.16,31.94743185]
[1732549294906,10.0,242.15,242.14,31.94743185]
[1732549296120,10.0,242.22,242.08,31.94743185]
[1732549296121,10.0,242.09,242.08,31.94743185]
[1732549296317,10.0,242.07,242.06,31.94743185]
[1732549296820,10.0,242.05,242.02,4.1318]
[1732549297006,70.0,242.11,242.02,4.1318]
[1732549297007,10.0,242.03,242.02,4.1318]
[1732549297317,10.0,242.03,242.02,36.07923185]
[1732549297503,10.0,242.05,242.02,36.07923185]
[1732549297707,10.0,242.05,242.04,31.94743185]
[1732549298200,10.0,242.05,242.04,36.07893185]
[1732549298422,10.0,242.05,242.04,31.94743185]
[1732549302403,10.0,242.05,242.04,63.8948637]
[1732549303003,10.0,242.05,242.04,31.94743185]
[1732549303404,10.0,242.05,242.04,63.8948637]
[1732549303620,10.0,242.05,242.04,55.72431585]
[1732549304112,10.0,242.05,242.04,31.94743185]
[1732549304424,10.0,242.05,242.04,87.6717477]
[1732549304924,10.0,242.05,242.04,59.85581585]
[1732549305319,10.0,242.09,242.05,23.776884]
[1732549305618,10.0,242.09,242.08,31.94743185]
[1732549305813,10.0,242.09,242.08,55.72431585]
[1732549306221,10.0,242.11,242.08,55.72431585]
[1732549306430,10.0,242.11,242.1,36.07793185]
[1732549306606,10.0,242.14,242.1,59.85481585]
[1732549306926,10.0,242.14,242.1,70.18111585]
[1732549307115,10.0,242.14,242.13,31.94743185]
[1732549308719,10.0,242.14,242.13,36.07743185]
[1732549309924,10.0,242.09,242.08,31.94743185]
[1732549310107,10.0,242.09,242.08,32.98008158]
[1732549310310,10.0,242.09,242.08,31.94743185]
[1732549310510,10.0,242.09,242.08,32.98017417]
[1732549310710,10.0,242.09,242.08,31.94743185]
[1732549310918,10.0,242.09,242.08,36.07823185]
[1732549311625,10.0,242.13,242.08,36.07823185]
[1732549311830,10.0,242.13,242.11,31.94743185]
[1732549312136,10.0,242.13,242.12,23.776884]
[1732549312302,10.0,242.21,242.12,55.84980585]
[1732549312501,10.0,242.21,242.2,31.94743185]
[1732549313529,10.0,242.21,242.2,36.07623185]
[1732549313708,10.0,242.21,242.2,31.94743185]
[1732549314129,10.0,242.21,242.2,36.07623185]
[1732549314441,10.0,242.17,242.14,31.94743185]
[1732549314627,10.0,242.15,242.14,31.94743185]
[1732549314815,10.0,242.17,242.14,31.94743185]
[1732549315136,10.0,242.17,242.16,31.94743185]
[1732549315309,10.0,242.19,242.16,63.8948637]
[1732549315509,10.0,242.19,242.18,31.94743185]
[1732549315724,10.0,242.21,242.18,31.94743185]
[1732549315925,10.0,242.19,242.18,31.94743185]
[1732549316514,10.0,242.19,242.17,4.1293]
[1732549316739,10.0,242.17,242.16,31.94743185]
[1732549316930,10.0,242.17,242.15,4.1295]
[1732549317110,10.0,242.17,242.16,31.94743185]
[1732549318430,10.0,242.17,242.15,4.1295]
[1732549319337,10.0,242.17,242.16,19.6483235]
[1732549319536,10.0,242.17,242.15,4.1295]
[1732549319722,10.0,242.16,242.15,4.1295]
[1732549320121,10.0,242.16,242.15,38.230484]
[1732549320520,10.0,242.16,242.15,14.4536]
[1732549321120,7.27483113,242.16,242.15,4.1295]
[1732549322420,7.27483113,242.17,242.15,14.4536]
[1732549322628,7.27483113,242.17,242.16,23.7778235]
[1732549322846,7.27483113,242.2,242.19,20.0]
[1732549323137,7.27483113,242.2,242.19,39.6483235]
[1732549323532,0.4864688,242.3,242.19,39.6483235]
[1732549323533,7.27483113,242.22,242.2,23.776884]
[1732549323733,7.27483113,242.25,242.21,19.6483235]
[1732549323930,7.27483113,242.25,242.24,19.6483235]
[1732549324743,7.27483113,242.28,242.24,23.7764235]
[1732549324924,7.27483113,242.28,242.27,19.6483235]
[1732549326531,7.76129993,242.3,242.27,19.7738135]
[1732549326841,7.76129993,242.3,242.29,19.6483235]
[1732549327022,7.76129993,242.3,242.28,23.7757235]
[1732549327935,7.27483113,242.27,242.26,23.7760235]
[1732549328851,70.0,242.32,242.26,23.7760235]
[1732549329024,150.8782,242.66,242.48,23.776884]
[1732549329348,12.1251,242.56,242.51,19.6483235]
[1732549329525,12.1251,242.56,242.43,20.0]
[1732549329727,12.1251,242.56,242.51,19.6483235]
[1732549330225,30.0,242.52,242.51,19.6483235]
[1732549330749,12.1251,242.56,242.51,19.6483235]
[1732549331046,130.8782,242.58,242.54,19.6483235]
[1732549331238,11.9002,242.64,242.54,19.6483235]
[1732549332426,80.0,242.71,242.58,20.0]
[1732549332629,150.8039809,242.7,242.63,19.6483235]
[1732549332959,131.1556574,242.69,242.63,19.6483235]
[1732549333136,0.2774574,242.68,242.63,19.6483235]
[1732549333453,70.2774574,242.68,242.63,19.6483235]
[1732549333969,70.2774574,242.68,242.63,23.7697235]
[1732549334251,70.2774574,242.68,242.63,19.6483235]
[1732549334549,0.2774574,242.68,242.53,14.55669]
[1732549334731,0.2774574,242.68,242.64,4.1213]
[1732549334937,0.2774574,242.68,242.65,19.6483235]
[1732549335356,0.2774574,242.68,242.67,19.6483235]
[1732549336751,0.2774574,242.68,242.67,23.7691235]
[1732549337260,30.1347923,242.79,242.67,23.7691235]
[1732549337429,89.6483235,242.75,242.59,0.12549]
[1732549337628,89.6483235,242.75,242.58,10.3058]
[1732549337629,0.4864688,242.79,242.74,19.6483235]
[1732549337831,0.4864688,242.79,242.77,19.6483235]
[1732549338726,0.4864688,242.79,242.77,23.7673235]
[1732549339660,0.4864688,242.79,242.78,24.027864]
[1732549339845,143.0572,242.97,242.77,23.7673235]
[1732549339846,39.6483235,242.95,242.8,20.0]
[1732549340046,80.0,242.93,242.86,19.6483235]
[1732549340348,130.8782,242.96,242.88,19.6483235]
[1732549340531,70.0,242.96,242.9,19.6483235]
[1732549340733,70.0,242.96,242.88,19.6483235]
[1732549341339,70.0,242.95,242.88,19.6483235]
[1732549341532,19.6483235,242.92,242.82,19.6483235]
[1732549341736,70.0,242.91,242.82,19.6483235]
[1732549342248,70.0,242.91,242.84,19.6483235]
[1732549342760,89.6483235,242.91,242.82,19.6483235]
[1732549343064,19.6483235,242.84,242.76,19.6483235]
[1732549343437,19.6483235,242.8,242.72,19.6483235]
[1732549343634,70.0,242.82,242.74,19.6483235]
[1732549343834,89.6483235,242.82,242.74,19.6483235]
[1732549344053,19.6483235,242.84,242.74,19.6483235]
[1732549344353,19.6483235,242.88,242.81,19.6483235]
[1732549344657,70.0,242.89,242.83,19.6483235]
[1732549344835,70.0,242.89,242.81,19.6483235]
[1732549345344,19.6483235,242.93,242.84,19.6483235]
[1732549345561,70.0,242.92,242.88,19.6483235]
[1732549345764,70.0,242.95,242.88,19.6483235]
[1732549346558,101.75596665,242.9,242.82,31.75596665]
[1732549346861,31.75596665,242.88,242.8,31.75596665]
[1732549347356,31.75596665,242.88,242.71,2.13531549]
[1732549347357,70.0,242.83,242.76,31.75596665]
[1732549347560,31.75596665,242.82,242.74,31.75596665]
[1732549347758,31.75596665,242.8,242.74,31.75596665]
[1732549347964,31.75596665,242.78,242.71,4.1201]
[1732549348139,70.0,242.86,242.77,31.75596665]
[1732549348458,31.75596665,242.84,242.74,31.75596665]
[1732549348757,31.75596665,242.8,242.72,35.87586665]
[1732549349156,70.0,242.82,242.77,31.75596665]
[1732549349359,70.0,242.82,242.75,31.75596665]
[1732549349660,31.75596665,242.8,242.72,35.87586665]
[1732549350268,101.75596665,242.86,242.78,31.75596665]
[1732549350845,101.75596665,242.86,242.79,4.1187]
[1732549351561,70.0,242.86,242.8,31.75596665]
[1732549351963,101.75596665,242.86,242.8,31.75596665]
[1732549352262,101.75596665,242.86,242.78,31.75596665]
[1732549352462,31.75596665,242.9,242.78,4.1188]
[1732549352763,31.75596665,242.9,242.83,31.75596665]
[1732549353638,70.0,242.88,242.81,31.75596665]
[1732549353841,101.75596665,242.88,242.81,31.75596665]
[1732549354149,10.0,242.94,242.81,31.75596665]
[1732549354150,31.75596665,242.9,242.82,4.1182]
[1732549354549,70.0,242.88,242.82,4.1182]
[1732549354974,31.75596665,242.9,242.83,31.75596665]
[1732549356240,31.75596665,242.9,242.83,35.87386665]
[1732549356641,70.0,242.91,242.85,31.75596665]
[1732549356842,70.0,242.91,242.83,35.87386665]
[1732549357257,101.75596665,242.88,242.81,31.75596665]
[1732549357460,101.75596665,242.88,242.69,35.024]
[1732549357461,31.75596665,242.86,242.79,31.75596665]
[1732549357651,31.75596665,242.88,242.81,31.75596665]
[1732549357854,31.75596665,242.84,242.69,35.024]
[1732549358065,8.2314,242.98,242.69,35.024]
[1732549358066,70.0,243.02,242.84,0.12549]
[1732549358262,101.75596665,242.92,242.85,4.1177]
[1732549358473,31.75596665,242.92,242.85,4.1177]
[1732549358772,101.75596665,242.92,242.85,4.1177]
[1732549359069,31.75596665,242.92,242.85,4.1177]
[1732549359446,31.75596665,242.94,242.86,31.75596665]
[1732549359745,31.75596665,243.0,242.92,31.75596665]
[1732549359949,7.68297055,243.01,242.96,31.75596665]
[1732549360365,7.68297055,243.01,242.97,4.1157]
[1732549360745,0.4864688,243.04,243.0,63.5119333]
[1732549360957,0.4864688,243.04,243.02,31.75596665]
[1732549361743,0.4864688,243.04,243.03,23.902374]
[1732549362054,0.4864688,243.04,243.03,23.776884]
[1732549362453,28.7986,243.25,243.07,24.027864]
[1732549362762,28.7986,243.25,243.2,31.75596665]
[1732549363073,43.49416665,243.28,243.2,31.75596665]
[1732549363247,43.49416665,243.28,243.22,31.75596665]
[1732549363446,43.49416665,243.28,243.2,31.75596665]
[1732549363673,31.75596665,243.26,243.18,31.75596665]
[1732549363853,70.0,243.25,243.18,31.75596665]
[1732549364046,70.0,243.25,243.19,31.75596665]
[1732549364366,70.0,243.25,243.19,35.86786665]
[1732549364747,70.0,243.25,243.19,31.75596665]
[1732549365070,101.75596665,243.25,243.17,31.75596665]
[1732549365289,31.75596665,243.21,243.14,4.1127]
[1732549365572,31.75596665,243.21,243.15,31.75596665]
[1732549365968,10.0,243.25,243.1,4.1135]
[1732549365969,130.8782,243.25,243.13,30.1521]
[1732549366159,31.75596665,243.37,243.23,31.75596665]
[1732549366370,31.75596665,243.31,243.23,31.75596665]
[1732549366566,31.75596665,243.27,243.15,4.1126]
[1732549366864,130.8782,243.32,243.22,31.75596665]
[1732549367068,11.898,243.33,243.26,31.75596665]
[1732549367257,31.75596665,243.35,243.26,31.75596665]
[1732549367457,31.75596665,243.33,243.24,31.75596665]
[1732549368372,31.75596665,243.31,243.24,31.75596665]
[1732549368548,31.75596665,243.31,243.22,31.75596665]
[1732549369152,130.8782,243.36,243.28,31.75596665]
[1732549369358,162.63416665,243.39,243.28,31.75596665]
[1732549369770,31.75596665,243.39,243.28,31.75596665]
[1732549370358,31.75596665,243.37,243.28,31.75596665]
[1732549370564,32.24243545,243.29,243.23,4.1113]
[1732549370752,0.4864688,243.29,243.23,4.1113]
[1732549371515,31.75596665,243.27,243.18,31.75596665]
[1732549371680,31.75596665,243.28,243.21,31.75596665]
[1732549372173,31.75596665,243.26,243.18,31.75596665]
[1732549372365,31.75596665,243.26,243.2,16.447651]
[1732549372873,32.24243545,243.29,243.22,31.75596665]
[1732549373080,0.4864688,243.29,243.25,31.75596665]
[1732549373469,32.24243545,243.29,243.22,31.75596665]
[1732549373654,0.4864688,243.29,243.2,30.838951]
[1732549373972,0.4864688,243.29,243.23,20.0]
[1732549374774,0.4864688,243.29,243.24,35.86706665]
[1732549374962,0.4864688,243.29,243.24,4.1111]
[1732549375157,0.4864688,243.29,243.24,35.86706665]
[1732549375465,0.4864688,243.29,243.24,4.1111]
[1732549375668,0.4864688,243.29,243.24,35.86706665]
[1732549375884,0.4864688,243.29,243.22,4.1113]
[1732549375885,32.24243545,243.29,243.22,4.1113]
[1732549376185,31.75596665,243.28,243.22,4.1113]
[1732549376371,32.24243545,243.29,243.22,35.86726665]